bitfinex-derivatives/quotes_ETHF0:USTF0_20260123
["timestamp","ask_amount","ask_price","bid_price","bid_amount"]
[1769157733260,0.17571849,2934.8,2933.7,3.124]
[1769157733461,0.33987489,2934.7,2933.7,3.124]
[1769157733760,0.17571849,2934.8,2933.7,3.124]
[1769157733957,0.33987562,2934.7,2933.7,3.124]
[1769157734261,0.17571849,2934.8,2933.7,3.124]
[1769157734562,0.33989109,2934.7,2933.7,3.124]
[1769157734861,0.17571849,2934.8,2933.7,3.124]
[1769157735062,0.33989147,2934.7,2933.7,3.124]
[1769157735260,0.1706,2934.7,2933.7,3.13]
[1769157735654,0.51050387,2934.6,2933.7,3.13]
[1769157735860,0.17061,2934.6,2933.7,6.97]
[1769157736260,0.17061,2934.6,2933.7,3.84]
[1769157737462,0.51050681,2934.5,2933.7,3.84]
[1769157737662,1.29813946,2934.4,2933.7,3.84]
[1769157737862,3.97447849,2934.7,2933.3,0.00339924]
[1769157737863,0.17063,2934.2,2933.3,0.00339924]
[1769157740568,0.33952547,2934.1,2933.3,0.00339924]
[1769157740866,0.17064,2934.1,2933.3,0.00339924]
[1769157742361,7.90511849,2934.8,2933.3,0.00339924]
[1769157742362,0.1706,2934.7,2933.3,0.00339924]
[1769157742568,1.29667789,2934.6,2933.3,0.00339924]
[1769157742768,1.29667789,2934.5,2933.3,0.00339924]
[1769157742971,1.29667789,2934.4,2933.3,0.00339924]
[1769157743171,1.29667789,2934.3,2933.3,0.00339924]
[1769157743363,0.1706,2934.7,2933.3,0.00339924]
[1769157743563,1.29664811,2934.6,2933.3,0.00339924]
[1769157743762,1.29664811,2934.5,2933.3,0.00339924]
[1769157744065,1.29664811,2934.4,2933.3,0.00339924]
[1769157744266,1.29664811,2934.3,2933.3,0.00339924]
[1769157744471,3.97959698,2934.8,2933.3,0.00339924]
[1769157744663,1.29659212,2934.7,2933.3,0.00339924]
[1769157744866,1.29659212,2934.6,2933.6,0.91022872]
[1769157745065,1.29659212,2934.5,2933.6,0.91022872]
[1769157745266,1.29659212,2934.4,2933.6,0.91022872]
[1769157745466,1.29659212,2934.3,2933.6,0.91022872]
[1769157745668,3.97959698,2934.8,2933.6,0.91022872]
[1769157745968,5.27104261,2934.7,2933.6,0.91022872]
[1769157746169,1.29656412,2934.6,2933.6,0.91022872]
[1769157746370,1.29656412,2934.5,2933.6,0.91022872]
[1769157746572,1.29656412,2934.4,2933.6,0.91022872]
[1769157746772,1.29656412,2934.3,2933.6,0.91022872]
[1769157746972,3.97447849,2934.7,2933.6,0.91022872]
[1769157747171,1.29654477,2934.6,2933.6,0.91022872]
[1769157747375,1.29654477,2934.5,2933.6,0.91022872]
[1769157747674,1.29654477,2934.4,2933.6,0.91022872]
[1769157747874,0.33930294,2934.3,2933.6,0.91022872]
[1769157748067,3.97447849,2934.7,2933.6,0.91022872]
[1769157748268,1.29643833,2934.6,2933.6,0.91022872]
[1769157748471,1.29643833,2934.5,2933.9,0.91022872]
[1769157748668,3.97447849,2934.7,2933.9,0.91022872]
[1769157748868,1.29650309,2934.6,2933.9,0.91022872]
[1769157749069,1.29650309,2934.5,2933.9,0.91022872]
[1769157749368,3.97447849,2934.7,2933.9,0.91022872]
[1769157749570,1.29656512,2934.6,2933.9,0.91022872]
[1769157749871,1.29656512,2934.5,2933.9,0.91022872]
[1769157750070,3.97447849,2934.7,2933.9,0.91022872]
[1769157750376,1.29659372,2934.6,2933.9,0.91022872]
[1769157750574,0.33933376,2934.5,2933.9,0.91022872]
[1769157750778,0.00511849,2934.8,2933.9,0.91022872]
[1769157751073,3.97447849,2934.6,2933.6,0.91022872]
[1769157751270,3.97447849,2934.4,2933.5,3.84]
[1769157751574,0.3393422,2934.3,2933.5,3.84]
[1769157751777,0.33931645,2934.2,2933.5,3.84]
[1769157751977,3.97447849,2934.4,2933.5,3.84]
[1769157752269,1.29663884,2934.3,2933.5,3.84]
[1769157752476,1.29663884,2934.2,2933.5,3.84]
[1769157752671,3.97447849,2934.4,2933.5,3.84]
[1769157752875,1.29672304,2934.3,2933.5,3.84]
[1769157753179,1.29672304,2934.2,2933.5,3.84]
[1769157753477,3.97447849,2934.4,2933.3,0.00339924]
[1769157753678,1.29661464,2934.3,2933.3,0.00339924]
[1769157753869,1.29661389,2934.2,2933.3,0.00339924]
[1769157754072,3.97447849,2934.4,2933.3,0.00339924]
[1769157754273,1.2966093,2934.3,2933.3,0.00339924]
[1769157754469,0.33932362,2934.2,2933.3,0.00339924]
[1769157754776,3.97447849,2934.4,2933.3,0.00339924]
[1769157754980,1.29650658,2934.3,2933.3,0.00339924]
[1769157755179,0.33929702,2934.2,2933.3,0.00339924]
[1769157755380,3.97447849,2934.4,2933.3,0.00339924]
[1769157755584,1.29644943,2934.3,2933.3,0.00339924]
[1769157755883,0.33928215,2934.2,2933.3,0.00339924]
[1769157756082,3.97447849,2934.4,2933.3,0.00339924]
[1769157756279,1.29644943,2934.3,2933.3,0.00339924]
[1769157756583,0.33928215,2934.2,2933.3,0.00339924]
[1769157756884,3.97447849,2934.4,2933.3,0.00339924]
[1769157757086,1.29643639,2934.3,2933.3,0.00339924]
[1769157757376,0.33927886,2934.2,2933.3,0.00339924]
[1769157757581,3.97447849,2934.4,2933.3,0.00339924]
[1769157757788,1.29655932,2934.3,2933.3,0.00339924]
[1769157758081,0.33931095,2934.2,2933.3,0.00339924]
[1769157758281,3.97447849,2934.4,2933.3,0.00339924]
[1769157758475,1.29659049,2934.3,2933.3,0.00339924]
[1769157758676,0.33931944,2934.2,2933.3,0.00339924]
[1769157758882,3.97447849,2934.4,2933.3,0.00339924]
[1769157759084,1.29692267,2934.3,2933.3,0.00339924]
[1769157759383,0.33940638,2934.2,2933.3,0.00339924]
[1769157759683,3.97447849,2934.4,2933.3,0.00339924]
[1769157759883,1.29686696,2934.3,2933.3,0.00339924]
[1769157760090,0.33939183,2934.2,2933.3,0.00339924]
[1769157760284,3.97447849,2934.4,2933.3,0.00339924]
[1769157760580,5.1030015,2934.3,2933.3,0.00339924]
[1769157760785,1.29700822,2934.2,2933.3,0.00339924]
[1769157761082,3.80599328,2934.3,2933.3,0.00339924]
[1769157761388,1.29700709,2934.2,2933.3,0.00339924]
[1769157761577,3.80599328,2934.3,2933.3,0.00339924]
[1769157761777,1.29726676,2934.2,2933.3,0.00339924]
[1769157762085,3.80599328,2934.3,2933.3,0.00339924]
[1769157762297,1.29720965,2934.2,2933.3,0.00339924]
[1769157762584,3.80599328,2934.3,2933.3,0.00339924]
[1769157762783,1.29831653,2934.2,2933.3,0.00339924]
[1769157762972,3.80599328,2934.3,2933.3,0.00339924]
[1769157763293,1.2984833,2934.2,2933.3,0.00339924]
[1769157763479,5.70199328,2934.7,2933.3,0.00339924]
[1769157763680,1.29872645,2934.6,2933.3,0.00339924]
[1769157763978,3.80599328,2934.7,2933.3,3.80939252]
[1769157764179,1.29887732,2934.6,2933.3,3.80939252]
[1769157764380,3.80599328,2934.7,2933.3,3.80939252]
[1769157764680,1.29905227,2934.6,2933.3,3.80939252]
[1769157764881,3.80599328,2934.7,2933.3,3.80939252]
[1769157765081,1.29905385,2934.6,2933.4,3.84]
[1769157765281,1.29905385,2934.5,2933.4,3.84]
[1769157765482,3.80599328,2934.7,2933.4,3.84]
[1769157765685,1.29929453,2934.6,2933.4,3.84]
[1769157765977,1.29929453,2934.5,2933.4,3.84]
[1769157766173,3.80599328,2934.7,2933.4,3.84]
[1769157766373,1.29928597,2934.6,2933.4,3.84]
[1769157766577,1.29928597,2934.5,2933.4,3.84]
[1769157766779,3.80599328,2934.7,2933.4,3.84]
[1769157767090,1.29942428,2934.6,2933.4,3.84]
[1769157767287,1.29942428,2934.5,2933.4,3.84]
[1769157767583,0.00511849,2934.8,2933.4,3.84]
[1769157767783,1.29951052,2934.7,2933.4,3.84]
[1769157767985,1.29951052,2934.6,2933.4,7.64599328]
[1769157768186,1.29951052,2934.5,2933.4,7.64599328]
[1769157768486,0.00511849,2934.8,2933.4,3.84]
[1769157768487,3.81111177,2934.8,2933.4,3.84]
[1769157768683,3.80599328,2934.6,2933.4,3.84]
[1769157768988,3.80599328,2934.4,2933.4,3.84]
[1769157769281,3.80599328,2934.2,2933.4,3.84]
[1769157769484,1.29935551,2934.1,2933.4,3.84]
[1769157769684,3.80599328,2934.2,2933.4,3.84]
[1769157769885,1.29960596,2934.1,2933.4,3.84]
[1769157770187,3.80599328,2934.2,2933.4,3.84]
[1769157770386,1.29652397,2934.1,2933.4,3.84]
[1769157770690,3.80599328,2934.2,2933.4,3.84]
[1769157770882,1.2964947,2934.1,2933.5,3.84]
[1769157771080,3.80599328,2934.2,2933.5,3.84]
[1769157771282,1.29649222,2934.1,2933.5,3.84]
[1769157771582,3.80599328,2934.2,2933.5,3.84]
[1769157771788,1.29649469,2934.1,2933.5,3.84]
[1769157771981,3.80599328,2934.2,2933.5,3.84]
[1769157772277,1.29635839,2934.1,2933.5,3.84]
[1769157772487,3.80599328,2934.2,2933.5,3.84]
[1769157772681,1.29636074,2934.1,2933.5,3.84]
[1769157772881,3.80599328,2934.2,2933.5,3.84]
[1769157773185,1.29636125,2934.1,2933.5,3.84]
[1769157773389,3.80599328,2934.2,2933.3,0.00339924]
[1769157773589,0.33712598,2934.1,2933.3,0.00339924]
[1769157773885,3.80599328,2934.2,2933.3,0.00339924]
[1769157774083,1.29631726,2934.1,2933.3,0.00339924]
[1769157774290,3.80599328,2934.2,2933.3,0.00339924]
[1769157774588,1.2962781,2934.1,2933.3,0.00339924]
[1769157774788,3.80599328,2934.2,2933.3,0.00339924]
[1769157775088,1.29627823,2934.1,2933.3,0.00339924]
[1769157775388,3.80599328,2934.2,2933.3,0.00339924]
[1769157775588,1.29618862,2934.1,2933.3,0.00339924]
[1769157775788,3.80599328,2934.2,2933.3,0.00339924]
[1769157775989,1.29618841,2934.1,2933.3,0.00339924]
[1769157776189,3.80599328,2934.2,2933.3,0.00339924]
[1769157776383,1.29618345,2934.1,2933.3,0.00339924]
[1769157776578,3.80599328,2934.2,2933.3,0.00339924]
[1769157776784,1.29616954,2934.1,2933.3,0.00339924]
[1769157776982,3.80599328,2934.2,2933.3,0.00339924]
[1769157777189,1.2961488,2934.1,2933.3,0.00339924]
[1769157777388,3.80599328,2934.2,2933.3,0.00339924]
[1769157777688,1.29613036,2934.1,2933.3,0.00339924]
[1769157777885,3.80599328,2934.2,2933.3,0.00339924]
[1769157778088,1.29613352,2934.1,2933.3,0.00339924]
[1769157778286,3.80599328,2934.2,2933.3,0.00339924]
[1769157778486,1.2961202,2934.1,2933.3,0.00339924]
[1769157778687,3.80599328,2934.2,2933.3,0.00339924]
[1769157778886,1.29611991,2934.1,2933.3,0.00339924]
[1769157779188,3.80599328,2934.2,2933.3,0.00339924]
[1769157782583,1.896,2934.6,2933.3,3.84339924]
[1769157782789,1.29635562,2934.5,2933.4,0.91031061]
[1769157782985,3.52697305,2934.7,2933.4,0.91031061]
[1769157783188,1.29647387,2934.6,2933.4,0.91031061]
[1769157783379,0.00511849,2934.8,2933.4,0.91031061]
[1769157783583,1.29646216,2934.7,2933.4,0.91031061]
[1769157783787,0.00511849,2934.8,2933.4,0.91031061]
[1769157783987,1.29648572,2934.7,2933.4,0.91031061]
[1769157784295,0.00511849,2934.8,2933.4,0.91031061]
[1769157784494,1.29637525,2934.7,2933.4,0.91031061]
[1769157784795,0.00511849,2934.8,2933.4,0.91031061]
[1769157784986,1.29635762,2934.7,2933.4,0.91031061]
[1769157785186,0.00511849,2934.8,2933.4,4.71473173]
[1769157785485,1.29621039,2934.7,2933.4,4.71473173]
[1769157785682,0.00511849,2934.8,2933.4,4.71473173]
[1769157785896,1.29613757,2934.7,2933.4,4.71473173]
[1769157786086,0.00511849,2934.8,2933.4,4.71473173]
[1769157786290,0.33706209,2934.7,2933.4,4.71473173]
[1769157786493,0.00511849,2934.8,2933.4,4.71473173]
[1769157786695,0.33701358,2934.7,2933.4,4.71473173]
[1769157786893,0.00511849,2934.8,2933.4,4.71473173]
[1769157787290,3.77177109,2934.8,2933.4,0.91031061]
[1769157787487,3.77177109,2934.8,2933.3,7.03539924]
[1769157787686,5.06238323,2934.7,2933.3,7.03539924]
[1769157787887,3.7666526,2934.7,2933.3,7.03539924]
[1769157788595,3.7666526,2934.5,2933.4,3.84]
[1769157788990,0.00511849,2934.8,2933.4,4.75031061]
[1769157789187,3.7666526,2934.6,2933.3,0.00339924]
[1769157789392,3.7666526,2934.4,2933.3,0.00339924]
[1769157790196,0.00511849,2934.8,2933.5,0.91031061]
[1769157790398,1.29565484,2934.7,2933.5,0.91031061]
[1769157790593,0.33692838,2934.6,2933.5,0.91031061]
[1769157790896,0.00511849,2934.8,2933.5,0.91031061]
[1769157791092,1.2956355,2934.7,2933.5,0.91031061]
[1769157791295,0.00511849,2934.8,2933.5,0.91031061]
[1769157791490,1.29562053,2934.7,2933.5,0.91031061]
[1769157791793,0.95870015,2934.6,2933.5,0.91031061]
[1769157792095,0.00511849,2934.8,2933.5,0.91031061]
[1769157792297,1.29562232,2934.7,2933.5,0.91031061]
[1769157792497,0.95870131,2934.6,2933.5,0.91031061]
[1769157792700,0.00511849,2934.8,2933.5,0.91031061]
[1769157792899,1.29564121,2934.7,2933.5,0.91031061]
[1769157793100,0.00511849,2934.8,2933.5,0.91031061]
[1769157793400,1.29563577,2934.7,2933.5,0.91031061]
[1769157793697,0.00511849,2934.8,2933.5,0.91031061]
[1769157794904,0.00511849,2934.8,2933.5,4.75031061]
[1769157797107,0.00511849,2934.8,2933.6,3.80442112]
[1769157797299,0.27262951,2935.6,2934.4,0.91031061]
[1769157797300,3.7666526,2935.6,2934.4,0.91031061]
[1769157797500,1.29534179,2935.5,2934.4,0.91031061]
[1769157797699,0.95856537,2935.4,2934.4,0.91031061]
[1769157797901,3.7666526,2935.6,2934.4,0.91031061]
[1769157798102,1.29530368,2935.5,2934.4,0.91031061]
[1769157798301,0.95852816,2935.4,2933.9,10.41753961]
[1769157798496,0.17056,2935.5,2933.9,10.41753961]
[1769157798700,0.95808689,2935.4,2933.9,10.41753961]
[1769157799006,0.17056,2935.5,2933.9,10.41753961]
[1769157799306,3.9372126,2935.5,2933.9,10.41753961]
[1769157801511,3.9372126,2935.5,2934.0,3.205]
[1769157802603,3.9372126,2935.5,2933.9,3.80953961]
[1769157802803,3.9372126,2935.5,2934.0,3.209]
[1769157803105,3.9372126,2935.5,2934.1,3.84]
[1769157804510,3.9372126,2935.5,2934.1,7.64442112]
[1769157805009,3.9372126,2935.5,2934.3,0.91031061]
[1769157805208,7.1786526,2935.9,2934.7,0.91031061]
[1769157805403,1.29381377,2935.8,2934.7,0.91031061]
[1769157805598,7.1786526,2935.9,2934.7,0.91031061]
[1769157805804,1.29376121,2935.8,2934.4,3.84]
[1769157806107,7.1786526,2935.9,2934.4,3.84]
[1769157806310,0.17056,2935.5,2934.4,3.84]
[1769157809113,0.17056,2935.5,2934.5,3.84]
[1769157813107,0.17056,2935.5,2934.5,7.079]
[1769157813814,0.17056,2935.5,2934.5,3.84]
[1769157814112,3.6017589,2935.5,2934.5,3.84]
[1769157814314,3.6017589,2935.4,2934.5,3.84]
[1769157814609,3.4311989,2935.4,2933.9,0.00511849]
[1769157814816,3.4311989,2934.9,2933.9,0.00511849]
[1769157816317,3.6017889,2934.9,2933.9,0.00511849]
[1769157817011,3.6017889,2934.9,2933.9,0.91518416]
[1769157822617,3.6017889,2934.9,2934.2,0.91006567]
[1769157822618,0.17059,2934.9,2934.2,0.91006567]
[1769157822820,3.4311989,2935.3,2934.5,0.91006567]
[1769157823015,0.33687314,2935.2,2934.5,0.91006567]
[1769157823216,3.4311989,2935.3,2934.5,0.91006567]
[1769157823417,1.29598627,2935.2,2934.5,0.91006567]
[1769157823610,3.4311989,2935.3,2934.5,0.91006567]
[1769157823818,1.29611205,2935.2,2934.5,0.91006567]
[1769157824020,3.6017689,2935.3,2934.5,0.91006567]
[1769157824326,1.29611311,2935.2,2934.5,0.91006567]
[1769157824628,3.6017689,2935.3,2934.5,0.91006567]
[1769157824821,1.29623851,2935.2,2934.5,0.91006567]
[1769157825023,3.6017689,2935.3,2934.5,0.91006567]
[1769157825221,1.29623849,2935.2,2934.5,0.91006567]
[1769157825523,3.6017689,2935.3,2934.5,0.91006567]
[1769157825717,1.29635817,2935.2,2934.5,0.91006567]
[1769157825917,3.6017689,2935.3,2934.5,0.91006567]
[1769157826117,1.29635645,2935.2,2934.5,0.91006567]
[1769157826319,3.6017689,2935.3,2934.5,0.91006567]
[1769157826513,1.29648204,2935.2,2934.5,0.91006567]
[1769157826722,3.6017689,2935.3,2934.5,4.75006567]
[1769157826922,1.29648204,2935.2,2934.5,4.75006567]
[1769157827123,3.6017689,2935.3,2934.5,4.75006567]
[1769157827421,1.29652926,2935.2,2934.5,4.75006567]
[1769157827621,3.6017689,2935.3,2934.5,4.75006567]
[1769157827823,1.29656722,2935.2,2934.5,4.75006567]
[1769157828026,0.33712208,2935.2,2934.5,4.75006567]
[1769157828226,3.6017689,2935.3,2934.5,4.75006567]
[1769157828418,3.6017789,2935.1,2934.5,3.4663]
[1769157828614,1.46713309,2935.0,2934.1,3.84]
[1769157828819,0.50768386,2935.0,2934.1,3.84]
[1769157829424,0.17058,2935.0,2934.1,3.84]
[1769157832527,0.17058,2935.0,2934.0,0.91006567]
[1769157833028,0.17058,2935.0,2934.2,0.91006567]
[1769157833417,0.17058,2935.0,2934.4,0.91006567]
[1769157834532,3.4311989,2935.5,2934.4,0.91006567]
[1769157834730,1.29625168,2935.4,2934.6,0.91006567]
[1769157834929,1.29625168,2935.3,2934.6,0.91006567]
[1769157835131,0.17056,2935.4,2934.6,0.91006567]
[1769157835329,1.29628282,2935.3,2934.6,0.91006567]
[1769157835628,0.17056,2935.4,2934.6,0.91006567]
[1769157835932,1.29631127,2935.3,2934.6,0.91006567]
[1769157836126,0.17056,2935.4,2934.6,0.91006567]
[1769157836329,0.95930106,2935.3,2934.6,0.91006567]
[1769157836630,0.17056,2935.4,2934.6,0.91006567]
[1769157837023,0.95934688,2935.3,2934.6,0.91006567]
[1769157837225,0.17056,2935.4,2934.6,0.91006567]
[1769157837424,1.29660164,2935.3,2934.6,0.91006567]
[1769157837625,0.17056,2935.4,2934.6,0.91006567]
[1769157837826,1.29661355,2935.3,2934.6,0.91006567]
[1769157838027,0.17056,2935.4,2934.6,0.91006567]
[1769157838227,1.29661355,2935.3,2934.6,0.91006567]
[1769157838428,0.17056,2935.4,2934.6,0.91006567]
[1769157838628,1.29673734,2935.3,2934.6,0.91006567]
[1769157838933,0.17056,2935.4,2934.6,0.91006567]
[1769157839135,1.29673793,2935.3,2934.6,0.91006567]
[1769157839333,0.17056,2935.4,2934.6,0.91006567]
[1769157839527,1.29687308,2935.3,2934.6,0.91006567]
[1769157839728,0.17056,2935.4,2934.6,0.91006567]
[1769157839929,1.29687308,2935.3,2934.6,0.91006567]
[1769157840127,0.17056,2935.4,2934.6,0.91006567]
[1769157840328,1.29696253,2935.3,2934.6,0.91006567]
[1769157840529,0.17056,2935.4,2934.6,0.91006567]
[1769157840726,1.29698541,2935.3,2934.6,0.91006567]
[1769157840928,0.17056,2935.4,2934.6,0.91006567]
[1769157841128,1.29682574,2935.3,2934.6,0.91006567]
[1769157841332,0.17056,2935.4,2934.6,0.91006567]
[1769157841632,1.2969817,2935.3,2934.6,0.91006567]
[1769157841937,0.95970255,2935.2,2934.6,0.91006567]
[1769157842135,0.95970255,2935.1,2934.6,0.91006567]
[1769157842337,0.17056,2935.4,2934.6,0.91006567]
[1769157842538,1.29720865,2935.3,2934.6,0.91006567]
[1769157842737,0.95986936,2935.2,2934.6,0.91006567]
[1769157843039,0.95986936,2935.1,2934.6,4.52358065]
[1769157843337,0.17056,2935.4,2934.6,4.52358065]
[1769157843639,0.33746897,2935.3,2934.6,4.52358065]
[1769157843938,0.17056,2935.4,2934.6,4.52358065]
[1769157844234,0.3374729,2935.3,2934.6,0.91006567]
[1769157844536,0.17056,2935.4,2934.4,0.91006567]
[1769157844835,0.50809245,2935.3,2934.2,0.91006567]
[1769157845133,0.17057,2935.3,2934.2,0.91006567]
[1769157846038,0.50800622,2935.2,2934.0,4.75006567]
[1769157846231,0.17057,2935.2,2934.5,0.91006567]
[1769157850539,0.3374995,2935.1,2934.0,4.20406567]
[1769157850738,0.17057,2935.2,2934.0,0.91006567]
[1769157850939,0.33749922,2935.1,2934.0,0.91006567]
[1769157851140,0.17057,2935.2,2934.0,0.91006567]
[1769157851340,0.33749886,2935.1,2934.0,0.91006567]
[1769157851536,0.33749886,2935.0,2934.0,0.91006567]
[1769157851737,0.17057,2935.2,2934.0,0.91006567]
[1769157851942,0.33755043,2935.1,2934.0,4.51839477]
[1769157852144,0.33755043,2935.0,2934.0,4.51839477]
[1769157852446,0.17057,2935.2,2934.0,4.51839477]
[1769157852644,0.337483,2935.1,2934.0,4.51839477]
[1769157852838,0.337483,2935.0,2934.0,4.51839477]
[1769157853038,0.17057,2935.2,2934.0,4.51839477]
[1769157853240,0.33747242,2935.1,2934.0,4.51839477]
[1769157853438,0.17057,2935.2,2934.0,4.51839477]
[1769157853644,0.33746912,2935.1,2934.0,0.91006567]
[1769157853843,0.33746912,2935.0,2934.0,0.91006567]
[1769157854043,0.17057,2935.2,2934.0,0.91006567]
[1769157854244,0.337467,2935.1,2934.0,0.91006567]
[1769157854445,0.337467,2935.0,2934.0,0.91006567]
[1769157854748,0.17057,2935.2,2934.0,0.91006567]
[1769157855047,0.33750098,2935.1,2934.0,0.91006567]
[1769157855247,1.29376777,2935.0,2934.0,0.91006567]
[1769157855545,0.17057,2935.2,2934.0,0.91006567]
[1769157855742,1.29376623,2935.1,2934.0,0.91006567]
[1769157855942,1.29376623,2935.0,2934.0,0.91006567]
[1769157856150,0.17057,2935.2,2934.0,0.91006567]
[1769157856348,1.29375008,2935.1,2934.0,0.91006567]
[1769157856647,1.29375008,2935.0,2934.0,0.91006567]
[1769157856950,0.17057,2935.2,2934.0,4.51839477]
[1769157857142,1.29374271,2935.1,2934.0,4.51839477]
[1769157857438,1.29374271,2935.0,2934.0,4.51839477]
[1769157857642,0.17057,2935.2,2934.0,4.51839477]
[1769157857842,0.17057,2935.2,2934.1,3.6083291]
[1769157857843,1.29373848,2935.1,2934.1,3.6083291]
[1769157858041,0.17057,2935.2,2934.3,0.91006567]
[1769157858244,1.29375683,2935.1,2934.3,0.91006567]
[1769157858448,0.17057,2935.2,2934.3,0.91006567]
[1769157858650,1.29372728,2935.1,2934.3,0.91006567]
[1769157858846,0.17057,2935.2,2934.3,0.91006567]
[1769157859047,1.29386499,2935.1,2934.3,0.91006567]
[1769157859249,0.17057,2935.2,2934.3,0.91006567]
[1769157859450,1.2939411,2935.1,2934.3,0.91006567]
[1769157859647,2.40899476,2935.8,2934.9,0.91006567]
[1769157859948,1.46468039,2935.7,2934.9,0.91006567]
[1769157860149,1.29414039,2935.6,2934.9,0.91006567]
[1769157860346,1.29414039,2935.5,2934.9,0.91006567]
[1769157860547,0.17054,2935.7,2934.9,0.91006567]
[1769157860746,1.29401223,2935.6,2934.9,0.91006567]
[1769157860948,1.29401223,2935.5,2934.9,0.91006567]
[1769157861145,0.17054,2935.7,2934.9,0.91006567]
[1769157861340,1.29387023,2935.6,2934.9,0.91006567]
[1769157861546,1.29387023,2935.5,2934.9,0.91006567]
[1769157861746,0.17054,2935.7,2934.9,0.91006567]
[1769157862046,1.29383906,2935.6,2934.9,0.91006567]
[1769157862245,1.29383906,2935.5,2934.9,0.91006567]
[1769157862446,0.17054,2935.7,2934.9,0.91006567]
[1769157862748,1.29377871,2935.6,2934.7,3.84]
[1769157862949,1.29377871,2935.5,2934.7,3.84]
[1769157863142,0.17054,2935.7,2934.7,3.84]
[1769157863346,1.2937321,2935.6,2934.7,3.84]
[1769157863547,1.2937321,2935.5,2934.7,3.84]
[1769157863747,0.17054,2935.7,2934.7,3.84]
[1769157863952,1.29372092,2935.6,2934.7,3.84]
[1769157864150,1.29372092,2935.5,2934.7,3.84]
[1769157864348,0.17054,2935.7,2934.7,3.84]
[1769157864546,1.29363102,2935.6,2934.7,3.84]
[1769157864747,1.29363102,2935.5,2934.7,3.84]
[1769157864947,0.17054,2935.7,2934.7,3.84]
[1769157865147,1.29323885,2935.6,2934.7,3.84]
[1769157865348,1.29323885,2935.5,2934.7,3.84]
[1769157865553,0.17054,2935.7,2934.7,3.84]
[1769157865753,1.29314052,2935.6,2934.7,3.84]
[1769157865953,1.29314052,2935.5,2934.7,3.84]
[1769157866144,0.17054,2935.7,2934.7,3.84]
[1769157866348,1.29307117,2935.6,2934.7,3.84]
[1769157866549,1.29307117,2935.5,2934.7,3.84]
[1769157866750,0.17054,2935.7,2934.7,3.84]
[1769157866949,1.29304164,2935.6,2934.7,3.84]
[1769157867145,1.29304164,2935.5,2934.7,3.84]
[1769157867349,0.17054,2935.7,2934.7,3.84]
[1769157867553,0.17054,2935.7,2934.7,4.75006567]
[1769157867554,1.29294694,2935.6,2934.7,4.75006567]
[1769157867753,1.29294694,2935.5,2934.7,4.75006567]
[1769157867950,0.17054,2935.7,2934.7,4.75006567]
[1769157868149,1.29288713,2935.6,2934.7,4.75006567]
[1769157868347,0.33725366,2935.5,2934.7,4.75006567]
[1769157868549,1.08061567,2935.6,2934.7,3.84]
[1769157868755,1.4633243,2935.5,2934.7,3.84]
[1769157868955,0.17055,2935.5,2934.7,3.84]
[1769157870646,0.17055,2935.5,2934.4,4.75006567]
[1769157871053,1.29262914,2935.4,2934.4,4.75006567]
[1769157871257,0.17055,2935.5,2934.4,4.75006567]
[1769157871448,1.29262084,2935.4,2934.5,3.6083291]
[1769157871656,0.17055,2935.5,2934.7,4.51839477]
[1769157872459,0.33719142,2935.4,2934.7,4.51839477]
[1769157872756,0.33719142,2935.3,2934.7,4.51839477]
[1769157872956,0.33719142,2935.2,2934.7,4.51839477]
[1769157873157,0.17055,2935.5,2934.7,4.51839477]
[1769157873359,0.33719132,2935.4,2934.7,4.51839477]
[1769157873554,0.17055,2935.5,2934.7,4.51839477]
[1769157874656,3.70802535,2936.1,2934.7,4.51839477]
[1769157874855,1.12598125,2936.0,2934.7,4.51839477]
[1769157875056,0.95545125,2935.9,2934.7,4.51839477]
[1769157876061,1.12598125,2935.9,2934.7,4.51839477]
[1769157876361,0.95545125,2935.8,2934.7,4.51839477]
[1769157876550,0.95545125,2935.7,2934.7,4.51839477]
[1769157876756,0.95545125,2935.6,2934.7,4.51839477]
[1769157876951,0.17053,2935.9,2934.6,3.84]
[1769157877161,0.95530575,2935.8,2934.6,3.84]
[1769157877463,0.95530575,2935.7,2934.6,3.84]
[1769157877663,0.95530575,2935.6,2934.6,3.84]
[1769157877958,0.17053,2935.9,2934.6,3.84]
[1769157878159,0.9552629,2935.8,2934.6,3.84]
[1769157878358,0.9552629,2935.7,2934.6,3.84]
[1769157878559,0.9552629,2935.6,2934.6,3.84]
[1769157878858,0.17053,2935.9,2934.6,3.84]
[1769157879059,0.95522824,2935.8,2934.6,3.84]
[1769157879259,0.95522824,2935.7,2934.6,3.84]
[1769157879461,0.95522824,2935.6,2934.7,3.84]
[1769157879661,0.17054,2935.8,2934.7,3.84]
[1769157879862,0.95520774,2935.7,2934.7,3.84]
[1769157880064,0.95520774,2935.6,2934.7,3.84]
[1769157880258,0.17054,2935.8,2934.7,3.84]
[1769157880458,0.95517503,2935.7,2934.7,3.84]
[1769157880765,1.12572503,2935.6,2934.7,3.84]
[1769157880965,0.95517503,2935.5,2934.7,3.84]
[1769157881262,0.17055,2935.6,2934.4,3.84]
[1769157881465,0.95523555,2935.5,2934.4,3.84]
[1769157881662,0.95523498,2935.4,2934.4,3.84]
[1769157881868,0.95523498,2935.3,2934.4,3.84]
[1769157882067,0.17055,2935.6,2934.4,3.84]
[1769157882262,0.95529258,2935.5,2934.4,3.84]
[1769157882570,0.95529258,2935.4,2934.4,3.84]
[1769157882866,0.95529258,2935.3,2934.4,3.84]
[1769157883065,0.17055,2935.6,2934.4,3.84]
[1769157883268,0.95538367,2935.5,2934.4,3.84]
[1769157883459,0.95538367,2935.4,2934.4,7.62211221]
[1769157883659,0.95538367,2935.3,2934.5,3.78211221]
[1769157883859,0.17055,2935.6,2934.5,3.78211221]
[1769157884058,0.95538486,2935.5,2934.5,3.78211221]
[1769157884259,0.95538486,2935.4,2934.5,3.78211221]
[1769157884459,0.95538486,2935.3,2934.5,3.78211221]
[1769157884671,0.17055,2935.6,2934.5,3.78211221]
[1769157884874,0.95552198,2935.5,2934.5,3.78211221]
[1769157885062,0.95552198,2935.4,2934.5,3.78211221]
[1769157885262,0.17055,2935.6,2934.5,7.62211221]
[1769157885263,0.95552198,2935.3,2934.5,7.62211221]
[1769157885462,0.17055,2935.6,2934.5,7.62211221]
[1769157885662,1.29045594,2935.5,2934.5,7.62211221]
[1769157885961,0.95569582,2935.4,2934.5,7.62211221]
[1769157886162,0.95569582,2935.3,2934.5,7.62211221]
[1769157886461,0.95569582,2935.2,2934.5,7.62211221]
[1769157886778,0.17055,2935.6,2934.5,7.62211221]
[1769157887069,1.29074808,2935.5,2934.5,7.62211221]